bitfinex/quotes_BTCUSD_20251208
["timestamp","ask_amount","ask_price","bid_price","bid_amount"]
[1765159170046,0.23087832,90957.0,90954.0,0.03024496]
[1765159170628,0.21988855,90956.0,90954.0,0.03024496]
[1765159171006,0.21789971,90956.0,90954.0,0.03024496]
[1765159171360,0.21789971,90956.0,90955.0,0.02946496]
[1765159171808,0.003,90957.0,90955.0,0.02946496]
[1765159172171,0.003,90957.0,90955.0,0.24935383]
[1765159172554,0.003,90957.0,90956.0,0.15937]
[1765159172786,0.00023603,90959.0,90956.0,0.50294085]
[1765159172986,0.00023603,90959.0,90956.0,0.40468085]
[1765159173192,0.00023603,90959.0,90956.0,0.16260472]
[1765159173389,0.2198817,90958.0,90956.0,0.0905004]
[1765159173590,0.2198817,90958.0,90955.0,0.03046496]
[1765159173591,0.21988653,90956.0,90955.0,0.03046496]
[1765159173809,0.21988653,90956.0,90955.0,0.001]
[1765159174007,0.23088859,90953.0,90950.0,0.01099505]
[1765159174213,0.01099468,90953.0,90950.0,0.01099505]
[1765159174797,0.01099481,90952.0,90949.0,0.02271307]
[1765159175474,0.01099481,90952.0,90949.0,0.03370824]
[1765159175648,0.01099481,90952.0,90950.0,0.0651813]
[1765159176055,0.01099481,90952.0,90950.0,0.0681813]
[1765159176406,0.01399481,90952.0,90950.0,0.0651813]
[1765159176629,0.230893,90952.0,90950.0,0.0681813]
[1765159176993,0.00099585,90951.0,90950.0,0.004]
[1765159178922,0.2208967,90951.0,90949.0,0.00052107]
[1765159179221,0.2248967,90951.0,90950.0,0.004]
[1765159179766,0.2208967,90951.0,90949.0,0.00052107]
[1765159180223,0.2278967,90951.0,90949.0,0.00252107]
[1765159180463,0.2278967,90951.0,90950.0,0.03416899]
[1765159180885,0.2348967,90951.0,90950.0,0.03516899]
[1765159181943,0.2348967,90951.0,90950.0,0.03616899]
[1765159182539,0.2348967,90951.0,90950.0,0.03516899]
[1765159182540,0.2208967,90951.0,90950.0,0.03516899]
[1765159182911,0.2278967,90951.0,90950.0,0.03516899]
[1765159183464,0.01499585,90951.0,90950.0,0.19342899]
[1765159183834,0.01499585,90951.0,90950.0,0.21562099]
[1765159184069,0.01499585,90951.0,90950.0,0.25485098]
[1765159184565,0.01499585,90951.0,90950.0,0.21562099]
[1765159186374,0.01499585,90951.0,90950.0,0.03616899]
[1765159190225,0.07797585,90951.0,90950.0,0.002]
[1765159190434,0.08560585,90951.0,90950.0,0.002]
[1765159191405,0.08461,90951.0,90950.0,0.002]
[1765159191605,0.08461,90951.0,90950.0,0.001]
[1765159191828,0.10103207,90951.0,90950.0,0.001]
[1765159192034,0.10203207,90951.0,90950.0,0.001]
[1765159192762,0.21990104,90950.0,90949.0,0.00052107]
[1765159192988,0.28989104,90950.0,90949.0,0.00052107]
[1765159193206,0.29088689,90950.0,90949.0,0.00052107]
[1765159193923,0.29188689,90950.0,90949.0,0.00052107]
[1765159194241,0.29688689,90950.0,90949.0,0.00252107]
[1765159195229,0.22697689,90950.0,90949.0,0.00252107]
[1765159195474,0.26937689,90950.0,90949.0,0.00252107]
[1765159195674,0.22697689,90950.0,90949.0,0.00252107]
[1765159195883,0.00699585,90950.0,90949.0,0.00252107]
[1765159196224,0.00699585,90950.0,90949.0,0.04280076]
[1765159199032,0.00699585,90950.0,90949.0,0.41996422]
[1765159199246,0.00699585,90950.0,90949.0,0.12639276]
[1765159199407,0.00699585,90950.0,90949.0,0.44215622]
[1765159201839,0.00699585,90950.0,90949.0,0.50467921]
[1765159201969,0.00199585,90950.0,90949.0,0.50267921]
[1765159202382,0.00199585,90950.0,90949.0,1.29288121]
[1765159202743,0.00299585,90950.0,90949.0,1.22958121]
[1765159202890,0.00299585,90950.0,90949.0,1.23158121]
[1765159203089,0.00099585,90950.0,90949.0,1.22858121]
[1765159203319,0.00299585,90950.0,90949.0,1.15038821]
[1765159203518,0.00299585,90950.0,90949.0,0.63360322]
[1765159203726,0.00399585,90950.0,90949.0,0.63760322]
[1765159203947,0.00399585,90950.0,90949.0,0.45929622]
[1765159204306,0.00399585,90950.0,90949.0,0.63866322]
[1765159205617,0.00395187,90950.0,90949.0,0.63866322]
[1765159206436,0.00395187,90950.0,90949.0,0.59302422]
[1765159206913,0.00395187,90950.0,90949.0,0.57910722]
[1765159207139,0.22427291,90950.0,90949.0,0.05280076]
[1765159207271,0.26632291,90950.0,90949.0,0.01252107]
[1765159207859,0.22427291,90950.0,90949.0,0.01252107]
[1765159208059,0.26632291,90950.0,90949.0,0.01252107]
[1765159208268,0.26432291,90950.0,90949.0,0.00452107]
[1765159208470,0.22732104,90950.0,90949.0,0.00652107]
[1765159208696,0.27540104,90950.0,90949.0,0.00252107]
[1765159208899,0.27540104,90950.0,90949.0,0.00352107]
[1765159209482,0.27540104,90950.0,90949.0,0.0015692]
[1765159210130,0.29759703,90950.0,90949.0,0.0015692]
[1765159210910,0.27540104,90950.0,90949.0,0.0015692]
[1765159211134,0.29284104,90950.0,90949.0,0.0015692]
[1765159211926,0.31503703,90950.0,90949.0,0.0015692]
[1765159213629,0.29284104,90950.0,90949.0,0.0015692]
[1765159218075,0.31503703,90950.0,90949.0,0.0015692]
[1765159219178,0.32703703,90950.0,90949.0,0.0025692]
[1765159219394,0.32103703,90950.0,90949.0,0.001]
[1765159219585,0.32103703,90950.0,90949.0,0.006]
[1765159219816,0.35603703,90950.0,90949.0,0.006]
[1765159220161,0.67903703,90950.0,90949.0,0.006]
[1765159220369,0.67903703,90950.0,90908.0,0.1462]
[1765159220370,0.01099976,90911.0,90907.0,0.03928518]
[1765159220574,0.23099544,90911.0,90908.0,0.0180357]
[1765159220789,0.05319989,90910.0,90908.0,0.0180357]
[1765159221196,0.23099553,90911.0,90909.0,0.02202]
[1765159221406,0.23099553,90911.0,90908.0,0.0180357]
[1765159221616,0.23099553,90911.0,90909.0,0.06505869]
[1765159221813,0.003,90911.0,90909.0,0.06505869]
[1765159222045,0.001,90911.0,90909.0,0.06505869]
[1765159222446,0.003,90911.0,90909.0,0.0880587]
[1765159222938,0.004,90911.0,90910.0,0.2199978]
[1765159223110,0.004,90911.0,90910.0,0.09125268]
[1765159223487,0.22399538,90911.0,90910.0,0.09125268]
[1765159224027,0.001,90911.0,90910.0,0.47635048]
[1765159224162,0.004,90911.0,90910.0,0.3940978]
[1765159224511,0.004,90911.0,90910.0,0.1741]
[1765159224677,0.003,90911.0,90910.0,0.1741]
[1765159224877,0.004,90911.0,90910.0,0.1761]
[1765159226349,0.004,90911.0,90910.0,0.07668]
[1765159226553,0.004,90911.0,90910.0,0.14381104]
[1765159226754,0.22399538,90911.0,90910.0,0.07813104]
[1765159226997,0.22448538,90911.0,90910.0,0.011]
[1765159227182,0.27510825,90911.0,90910.0,0.011]
[1765159228059,0.27210825,90911.0,90910.0,0.002]
[1765159228315,0.01100158,90896.0,90893.0,0.01100194]
[1765159228523,0.01100158,90896.0,90894.0,0.09923874]
[1765159228748,0.23103475,90896.0,90895.0,0.00159448]
[1765159229403,0.23355762,90896.0,90895.0,0.00159448]
[1765159229588,0.28215762,90896.0,90895.0,0.00159448]
[1765159230322,0.28515762,90896.0,90895.0,0.00159448]
[1765159230735,0.28215762,90896.0,90895.0,0.00159448]
[1765159230931,0.28215762,90896.0,90895.0,0.00759448]
[1765159231159,0.28515762,90896.0,90895.0,0.00759448]
[1765159231773,0.28215762,90896.0,90895.0,0.00159448]
[1765159231980,0.28315762,90896.0,90895.0,0.00159448]
[1765159232188,0.23455762,90896.0,90895.0,0.00159448]
[1765159232397,0.23364762,90896.0,90895.0,0.00159448]
[1765159232600,0.28715762,90896.0,90895.0,0.00459448]
[1765159232801,0.30935361,90896.0,90895.0,0.00459448]
[1765159233584,0.23903762,90896.0,90895.0,0.00459448]
[1765159233765,0.28615762,90896.0,90895.0,0.00159448]
[1765159233967,0.28215762,90896.0,90895.0,0.00259448]
[1765159234188,0.28515762,90896.0,90895.0,0.00759448]
[1765159234531,0.30435361,90896.0,90895.0,0.00159448]
[1765159234728,0.30935361,90896.0,90895.0,0.00459448]
[1765159237269,0.63235361,90896.0,90895.0,0.00459448]
[1765159238711,0.61015762,90896.0,90895.0,0.00459448]
[1765159239755,0.23903762,90896.0,90895.0,0.00459448]
[1765159239994,0.23764762,90896.0,90895.0,0.00459448]
[1765159240606,0.28714762,90896.0,90895.0,0.00459448]
[1765159240810,0.78415243,90896.0,90895.0,0.00271783]
[1765159241013,0.72259342,90896.0,90895.0,0.00271783]
[1765159241257,0.75564484,90896.0,90895.0,0.00271783]
[1765159241455,0.75564484,90896.0,90860.0,0.0002]
[1765159241456,0.22011644,90861.0,90860.0,0.0002]
[1765159241980,0.22011644,90861.0,90860.0,0.00123417]
[1765159242203,0.26961644,90861.0,90860.0,0.00123417]
[1765159242406,0.27010644,90861.0,90860.0,0.00123417]
[1765159242684,0.23111886,90863.0,90860.0,0.16642417]
[1765159242895,0.23111886,90863.0,90861.0,0.01884371]
[1765159243123,0.23111886,90863.0,90860.0,0.0002]
[1765159243322,0.003,90861.0,90860.0,0.0042]
[1765159243497,0.003,90861.0,90860.0,0.56526999]
[1765159243744,0.01100327,90882.0,90877.0,0.022192]
[1765159243996,0.23105918,90886.0,90877.0,0.022192]
[1765159243997,0.23105432,90888.0,90885.0,0.04758]
[1765159244197,0.2310541,90888.0,90885.0,0.04758]
[1765159244606,0.2310541,90888.0,90887.0,0.06662]
[1765159245567,0.0110034,90881.0,90878.0,0.04640046]
[1765159245804,0.0110034,90881.0,90879.0,0.09699828]
[1765159246196,0.22007042,90880.0,90879.0,0.09699828]
[1765159246429,0.19805042,90880.0,90878.0,0.04640046]
[1765159246637,0.0110034,90881.0,90878.0,0.04640046]
[1765159246849,0.0110034,90881.0,90880.0,0.06662]
[1765159247058,0.0140034,90881.0,90880.0,0.06662]
[1765159247268,0.2310714,90881.0,90880.0,0.06662]
[1765159247476,0.2310714,90881.0,90880.0,0.10223135]
[1765159248090,0.01100315,90883.0,90880.0,0.11023135]
[1765159248297,0.003,90881.0,90880.0,0.20880135]
[1765159248524,0.003,90881.0,90880.0,0.11023135]
[1765159248742,0.003,90881.0,90880.0,0.11067447]
[1765159249170,0.003,90881.0,90880.0,0.04405447]
[1765159249384,0.06908287,90881.0,90880.0,0.00144312]
[1765159249632,0.09127886,90881.0,90880.0,0.00844312]
[1765159249811,0.09127886,90881.0,90880.0,0.00144312]
[1765159250044,0.39208287,90881.0,90880.0,0.00144312]
[1765159250216,0.39208287,90881.0,90880.0,0.00744312]
[1765159250217,0.41727886,90881.0,90880.0,0.00744312]
[1765159250448,0.41727886,90881.0,90880.0,0.00644312]
[1765159250718,0.42527886,90881.0,90880.0,0.00144312]
[1765159250919,0.45527886,90881.0,90880.0,0.00344312]
[1765159251252,0.39208287,90881.0,90880.0,0.00044312]
[1765159251719,0.37460287,90881.0,90880.0,0.00044312]
[1765159251880,0.39208287,90881.0,90880.0,0.00044312]
[1765159252513,0.43508287,90881.0,90880.0,0.00244312]
[1765159252687,0.43508287,90881.0,90880.0,0.00144312]
[1765159252688,0.08008287,90881.0,90880.0,0.00144312]
[1765159252890,0.06908287,90881.0,90880.0,0.00044312]
[1765159253224,0.08008287,90881.0,90880.0,0.00144312]
[1765159253580,0.10908287,90881.0,90880.0,0.00244312]
[1765159253778,0.09808287,90881.0,90880.0,0.00144312]
[1765159254003,0.09808287,90881.0,90880.0,0.00244312]
[1765159254004,0.10908287,90881.0,90880.0,0.00244312]
[1765159254221,0.13127886,90881.0,90880.0,0.00244312]
[1765159255002,0.09160287,90881.0,90880.0,0.00244312]
[1765159255202,0.10859287,90881.0,90880.0,0.00244312]
[1765159255438,0.10908287,90881.0,90880.0,0.00244312]
[1765159255935,0.13127886,90881.0,90880.0,0.00244312]
[1765159256793,0.1415534,90881.0,90880.0,0.00244312]
[1765159257376,0.10187741,90881.0,90880.0,0.00244312]
[1765159257579,0.1415534,90881.0,90880.0,0.00244312]
[1765159257978,0.4645534,90881.0,90880.0,0.00244312]
[1765159259122,0.4470734,90881.0,90880.0,0.00244312]
[1765159259327,0.4645534,90881.0,90880.0,0.00244312]
[1765159259838,0.4535534,90881.0,90880.0,0.00044312]
[1765159260029,0.4245534,90881.0,90880.0,0.00044312]
[1765159260225,0.4375534,90881.0,90880.0,0.00344312]
[1765159260430,0.4735534,90881.0,90880.0,0.00244312]
[1765159260634,0.4605534,90881.0,90880.0,0.00044312]
[1765159260936,0.4945534,90881.0,90880.0,0.00144312]
[1765159261341,0.1715534,90881.0,90880.0,0.00144312]
[1765159261636,0.1715534,90881.0,90880.0,0.00156062]
[1765159261812,0.18138695,90881.0,90880.0,0.00256062]
[1765159262300,0.10138695,90881.0,90880.0,0.00056062]
[1765159262711,0.13838695,90881.0,90880.0,0.00156062]
[1765159262910,0.13838695,90881.0,90880.0,0.00056062]
[1765159263595,0.12522096,90881.0,90880.0,0.00056062]
[1765159263833,0.13242642,90881.0,90880.0,0.00056062]
[1765159264846,0.12542642,90881.0,90880.0,0.00056062]
[1765159265077,0.058,90881.0,90880.0,0.06315062]
[1765159265398,0.001,90881.0,90880.0,0.07403768]
[1765159265700,0.00440582,90881.0,90880.0,0.07703768]
[1765159266006,0.22006563,90882.0,90880.0,0.16377768]
[1765159266184,0.22006563,90882.0,90881.0,0.06059]
[1765159268250,0.22006557,90882.0,90881.0,0.15233]
[1765159268367,0.22406557,90882.0,90881.0,0.15433]
[1765159268568,0.22406557,90882.0,90881.0,0.06259]
[1765159268776,0.22506557,90882.0,90881.0,0.06559]
[1765159269598,0.005,90882.0,90881.0,0.15733]
[1765159271310,0.005,90882.0,90881.0,0.6579751]
[1765159271612,0.08214,90924.0,90912.0,0.01099964]
[1765159271613,0.01099916,90916.0,90912.0,0.01099964]
[1765159271868,0.01099989,90910.0,90905.0,0.01100049]
[1765159272120,0.01099989,90910.0,90900.0,0.37384022]
[1765159272121,0.22000506,90907.0,90906.0,0.06158554]
[1765159272609,0.01100061,90904.0,90900.0,0.0110011]
[1765159272852,0.01100025,90907.0,90903.0,0.01100073]
[1765159273089,0.01099952,90913.0,90910.0,0.01099989]
[1765159273319,0.0109994,90914.0,90910.0,0.01099989]
[1765159273544,0.01099964,90912.0,90911.0,0.04132751]
[1765159273726,0.015,90910.0,90909.0,0.01100001]
[1765159273974,0.015,90910.0,90908.0,0.01100013]
[1765159274149,0.02599989,90910.0,90907.0,0.01100025]
[1765159274622,0.02599989,90910.0,90909.0,0.06601]
[1765159274805,0.01499989,90910.0,90909.0,0.06601]
[1765159275088,0.01099976,90911.0,90909.0,0.10578146]
[1765159275282,0.01099976,90911.0,90910.0,0.003]
[1765159275488,0.001,90910.0,90909.0,0.10578146]
[1765159275947,0.007,90910.0,90909.0,0.10878146]
[1765159276149,0.01099976,90911.0,90909.0,0.10578146]
[1765159276401,0.01899976,90911.0,90910.0,0.10323261]
[1765159276794,0.01099976,90911.0,90910.0,0.10023261]
[1765159277949,0.01099976,90911.0,90910.0,0.16624261]
[1765159278149,0.01099964,90912.0,90910.0,0.16624261]
[1765159278354,0.01099964,90912.0,90911.0,0.07019366]
[1765159279539,0.01199964,90912.0,90911.0,0.07219366]
[1765159279822,0.01799964,90912.0,90911.0,0.07519366]
[1765159280768,0.007,90912.0,90911.0,0.23546366]
[1765159281201,0.007,90912.0,90911.0,0.25765566]
[1765159281605,0.007,90912.0,90911.0,0.54017403]
[1765159281814,0.006,90912.0,90911.0,0.53817403]
[1765159281982,0.01099831,90923.0,90911.0,0.53817403]
[1765159281983,0.01099807,90925.0,90920.0,0.01099868]
[1765159282183,0.23096719,90922.0,90921.0,0.06929376]
[1765159282613,0.23096719,90922.0,90921.0,0.27924376]
[1765159284448,0.23296719,90922.0,90921.0,0.28124376]
[1765159284663,0.002,90922.0,90921.0,0.28124376]
[1765159284864,0.22296876,90922.0,90921.0,0.28424376]
[1765159285070,0.003,90922.0,90921.0,0.28424376]
[1765159286133,0.22296876,90922.0,90921.0,0.28424376]
[1765159286379,0.003,90922.0,90921.0,0.28424376]
[1765159286608,0.003,90922.0,90921.0,0.50421494]
[1765159287242,0.003,90922.0,90921.0,0.52640694]
[1765159287673,0.003,90922.0,90921.0,0.58892993]
[1765159288360,0.003,90922.0,90921.0,0.56673793]
[1765159288778,0.003,90922.0,90921.0,0.58892993]
[1765159291434,0.003,90922.0,90921.0,0.56673793]
[1765159291652,0.003,90922.0,90921.0,0.52165494]
[1765159294582,0.003,90922.0,90921.0,0.54384694]
[1765159294985,0.003,90922.0,90921.0,0.52165494]
[1765159295786,0.002,90922.0,90921.0,0.54084694]
[1765159296171,0.01099686,90935.0,90931.0,0.01099734]
[1765159296172,0.01099698,90934.0,90931.0,0.01099734]
[1765159296364,0.01099674,90936.0,90934.0,0.06601]
[1765159296567,0.01099674,90936.0,90935.0,0.06601]
[1765159297259,0.0109965,90938.0,90935.0,0.16027]
[1765159297473,0.008,90936.0,90935.0,0.09426]
[1765159297760,0.008,90936.0,90934.0,0.002]
[1765159297761,0.21993731,90935.0,90934.0,0.002]
[1765159298195,0.00161287,90936.0,90934.0,0.16027]
[1765159298395,0.00161287,90936.0,90935.0,0.06601]
[1765159298593,0.00161287,90936.0,90935.0,0.11116008]
[1765159298899,0.21994215,90933.0,90932.0,0.04728933]
[1765159299100,0.21994215,90933.0,90924.0,0.01099819]
[1765159299101,0.23094993,90929.0,90924.0,0.23095996]
[1765159299321,0.23094993,90929.0,90924.0,0.23107746]
[1765159299508,0.01099722,90932.0,90928.0,0.07700771]
[1765159299809,0.00161287,90933.0,90931.0,0.04968]
[1765159300024,0.00161287,90933.0,90932.0,0.13209589]
[1765159300308,0.00861287,90933.0,90932.0,0.06808589]
[1765159300711,0.00861287,90933.0,90932.0,0.13209589]
[1765159300908,0.00161287,90933.0,90932.0,0.22635589]
[1765159301473,0.01161287,90933.0,90932.0,0.22835589]
[1765159302058,0.01,90933.0,90932.0,0.22835589]
[1765159302474,0.0109965,90938.0,90935.0,0.01099686]
[1765159302770,0.01099601,90942.0,90938.0,0.0109965]
[1765159302972,0.01099614,90941.0,90938.0,0.06126]
[1765159303192,0.01099626,90940.0,90939.0,0.09957]
[1765159303393,0.01099626,90940.0,90939.0,0.19041107]
[1765159303593,0.01099626,90940.0,90939.0,0.25167107]
[1765159303828,0.01099614,90941.0,90939.0,0.25167107]
[1765159304030,0.01099577,90944.0,90941.0,0.01099614]
[1765159304326,0.02963774,90968.0,90941.0,0.01099614]
[1765159304327,0.01313936,90952.0,90949.0,0.01099517]
[1765159304542,0.00214455,90952.0,90951.0,0.33069862]
[1765159304687,0.00214455,90952.0,90951.0,0.1108]
[1765159304889,0.00214455,90952.0,90951.0,0.49748572]
[1765159305449,0.00214455,90952.0,90951.0,0.39791572]
[1765159306047,0.00214455,90952.0,90951.0,0.39991572]
[1765159306257,0.00214455,90952.0,90951.0,0.49948572]
[1765159306422,0.01014455,90952.0,90951.0,0.50148572]
[1765159310438,0.01014455,90952.0,90951.0,0.52367772]
[1765159310688,0.01014455,90952.0,90951.0,0.50148572]
[1765159311335,0.01014455,90952.0,90951.0,0.52367772]
[1765159311531,0.01014455,90952.0,90951.0,0.50148572]
[1765159312492,0.01014455,90952.0,90951.0,0.49948572]
[1765159312672,0.00314455,90952.0,90951.0,0.52267772]
[1765159313092,0.00814455,90952.0,90951.0,0.52467772]
[1765159313475,0.00814455,90952.0,90951.0,0.50248572]
[1765159313676,0.00814455,90952.0,90951.0,0.005]
[1765159314430,0.22804075,90952.0,90951.0,0.005]
[1765159315620,0.27915362,90952.0,90951.0,0.005]
[1765159315796,0.27964362,90952.0,90951.0,0.005]
[1765159315976,0.30183961,90952.0,90951.0,0.005]
[1765159316543,0.30183961,90952.0,90930.0,0.04954]
[1765159316544,0.2199615,90925.0,90920.0,0.0393264]
[1765159316735,0.2199615,90925.0,90899.0,0.03302093]
[1765159316736,0.68200036,90925.0,90895.0,0.0393264]
[1765159316918,0.69324159,90925.0,90894.0,0.04954]
[1765159318104,0.70524159,90925.0,90924.0,0.0011175]
[1765159318313,0.69497036,90925.0,90924.0,0.0011175]
[1765159318710,0.69497036,90925.0,90924.0,0.0061175]
[1765159318895,0.70977437,90925.0,90924.0,0.0061175]
[1765159319099,0.73197036,90925.0,90924.0,0.0061175]
[1765159319551,0.70977437,90925.0,90924.0,0.0061175]
[1765159319746,0.73197036,90925.0,90924.0,0.0061175]
[1765159321889,0.70977437,90925.0,90924.0,0.0061175]
[1765159322090,0.73197036,90925.0,90924.0,0.0061175]
[1765159325032,0.31886437,90925.0,90924.0,0.0061175]
[1765159325234,0.33630437,90925.0,90924.0,0.0061175]
[1765159325635,0.31864447,90925.0,90924.0,0.0061175]
[1765159325903,0.2567416,90925.0,90924.0,0.0051175]
[1765159326338,0.2687416,90925.0,90924.0,0.0061175]
[1765159326748,0.2567416,90925.0,90924.0,0.0051175]
[1765159327186,0.2207416,90925.0,90924.0,0.01257105]
[1765159327585,0.2207416,90925.0,90924.0,0.01757105]
[1765159327586,0.2577416,90925.0,90924.0,0.01757105]
[1765159327792,0.32943759,90925.0,90924.0,0.0051175]
[1765159327990,0.65243759,90925.0,90924.0,0.0051175]
[1765159328222,0.65243759,90925.0,90881.0,0.0605434]
[1765159328223,0.01100231,90890.0,90881.0,0.04954]
[1765159328429,0.22005105,90888.0,90887.0,0.02786569]
[1765159328724,0.23105018,90890.0,90887.0,0.02786569]
[1765159328893,0.01100218,90891.0,90889.0,0.06629]
[1765159329095,0.01100194,90893.0,90890.0,0.07729231]
[1765159329430,0.01100194,90893.0,90887.0,0.12528569]
[1765159329431,0.23105075,90890.0,90887.0,0.02786569]
[1765159329634,0.23105075,90890.0,90888.0,0.00884091]
[1765159329919,0.01100231,90890.0,90889.0,0.06629]
[1765159330120,0.01100231,90890.0,90889.0,0.06729]
[1765159330262,0.01100231,90890.0,90889.0,0.001]
[1765159330618,0.22003821,90894.0,90890.0,0.01100231]
[1765159330828,0.0110017,90895.0,90893.0,0.06629]
[1765159331055,0.23103657,90895.0,90894.0,0.06629]
[1765159331444,0.23103657,90895.0,90894.0,0.16371]
[1765159331609,0.22003894,90893.0,90891.0,0.04534792]
[1765159332073,0.23104994,90890.0,90887.0,0.00062832]
[1765159332631,0.23104868,90890.0,90887.0,0.00062832]
[1765159332835,0.012,90895.0,90890.0,0.2200462]
[1765159333143,0.012,90895.0,90894.0,0.06589]
[1765159333548,0.01100097,90901.0,90898.0,0.01100134]
[1765159333785,0.01100097,90901.0,90899.0,0.12237849]
[1765159333989,0.01100097,90901.0,90900.0,0.06589]
[1765159334188,0.01100085,90902.0,90900.0,0.06589]
[1765159334393,0.01100085,90902.0,90901.0,0.06589]
[1765159334881,0.01100073,90903.0,90901.0,0.06589]
[1765159335089,0.01100073,90903.0,90902.0,0.16461]
[1765159335228,0.01100073,90903.0,90902.0,0.23369093]
[1765159335641,0.2310104,90905.0,90902.0,0.23369093]
[1765159335845,0.01100013,90908.0,90904.0,0.11239]
[1765159335846,0.01100025,90907.0,90904.0,0.11239]
[1765159336066,0.01100025,90907.0,90904.0,0.0465]
[1765159336296,0.01100025,90907.0,90906.0,0.06589]
[1765159337136,0.016,90907.0,90906.0,0.06589]
[1765159337286,0.016,90907.0,90906.0,0.16461]
[1765159337500,0.001,90907.0,90906.0,0.16461]
[1765159337818,0.017,90907.0,90906.0,0.16761]
[1765159338018,0.017,90907.0,90906.0,0.27701955]
[1765159338641,0.016,90907.0,90906.0,0.11240955]
[1765159338855,0.016,90907.0,90906.0,0.003]
[1765159339012,0.017,90907.0,90906.0,0.003]
[1765159339864,0.017,90907.0,90906.0,0.06889]
[1765159340868,0.017,90907.0,90906.0,0.38761748]
[1765159341729,0.016,90907.0,90906.0,0.38761748]
[1765159341929,0.016,90907.0,90906.0,0.49166038]
[1765159342482,0.016,90907.0,90906.0,0.48966038]
[1765159342685,0.017,90907.0,90906.0,0.49166038]
[1765159343007,0.017,90907.0,90906.0,0.89637537]
[1765159343008,0.001,90907.0,90906.0,0.89637537]
[1765159343423,0.013,90907.0,90906.0,0.89837537]
[1765159343626,0.001,90907.0,90906.0,0.89637537]
[1765159344008,0.012,90907.0,90906.0,0.89837537]
[1765159344609,0.012,90907.0,90906.0,0.87618337]
[1765159344807,0.012,90907.0,90906.0,0.81366038]
[1765159345017,0.012,90907.0,90906.0,0.83110038]
[1765159348381,0.012,90907.0,90906.0,0.85329238]
[1765159348783,0.012,90907.0,90906.0,0.91581537]
[1765159349041,0.012,90907.0,90906.0,0.95514177]
[1765159349226,0.012,90907.0,90906.0,0.91581537]
[1765159349370,0.012,90907.0,90906.0,0.93223744]
[1765159349571,0.012,90907.0,90906.0,0.99122704]
[1765159349775,0.01099722,90932.0,90906.0,0.99122704]
[1765159349776,0.21990105,90950.0,90933.0,0.0109971]
[1765159349976,0.01260792,90950.0,90940.0,0.22259739]
[1765159350178,0.01260792,90950.0,90936.0,0.0465]
[1765159350179,0.01099601,90942.0,90936.0,0.0465]
[1765159350475,0.01099626,90940.0,90937.0,0.06712343]
[1765159350719,0.01099626,90940.0,90937.0,0.07812005]
[1765159350921,0.0111137,90940.0,90937.0,0.07812005]
[1765159351127,0.00011744,90940.0,90939.0,0.06589]
[1765159351997,0.00011744,90940.0,90939.0,0.16461]
[1765159352194,0.00011744,90940.0,90939.0,0.24256372]
[1765159352435,0.00011744,90940.0,90939.0,0.30508671]
[1765159352639,0.01111744,90940.0,90939.0,0.24456372]
[1765159352991,0.00011744,90940.0,90939.0,0.26475572]
[1765159353196,0.00911744,90940.0,90939.0,0.32827871]
[1765159353419,0.00911744,90940.0,90939.0,0.65127871]
[1765159353831,0.00911744,90940.0,90939.0,0.65227871]
[1765159359163,0.00911744,90940.0,90939.0,0.24456372]
[1765159360314,0.00911744,90940.0,90939.0,0.32927871]
[1765159360651,0.00911744,90940.0,90939.0,0.65227871]
[1765159361803,0.00911744,90940.0,90939.0,0.65127871]
[1765159362043,0.00011744,90940.0,90939.0,0.65327871]
[1765159362450,0.00111744,90940.0,90939.0,0.65027871]
[1765159362656,0.00011744,90940.0,90939.0,0.65027871]
[1765159362855,0.00111744,90940.0,90939.0,0.65527871]
[1765159363010,0.00211744,90940.0,90939.0,0.66027871]
[1765159363369,0.00214455,90952.0,90951.0,0.30461361]
[1765159363577,0.00214455,90952.0,90951.0,0.51306478]
[1765159363926,0.00214455,90952.0,90951.0,0.93462478]
[1765159364124,0.00214455,90952.0,90951.0,0.91243278]
[1765159364255,0.00214455,90952.0,90951.0,0.93462478]
[1765159364686,0.00314455,90952.0,90951.0,0.93462478]
[1765159365092,0.00314455,90952.0,90951.0,0.93662478]
[1765159365292,0.00314455,90952.0,90951.0,0.91443278]
[1765159365493,0.00314455,90952.0,90951.0,0.93662478]
[1765159368097,0.00314455,90952.0,90951.0,0.91443278]
[1765159368723,0.00314455,90952.0,90951.0,0.89699278]
[1765159368971,0.00314455,90952.0,90951.0,0.67709416]
[1765159369923,0.00314455,90952.0,90951.0,0.12643117]
[1765159370258,0.00314455,90952.0,90951.0,0.19301117]
[1765159371085,0.00314455,90952.0,90951.0,0.29157117]
[1765159372054,0.00314455,90952.0,90951.0,0.19301117]
[1765159372259,0.00314455,90952.0,90951.0,0.002]
[1765159372260,0.05425742,90952.0,90951.0,0.002]
[1765159373314,0.01099601,90942.0,90939.0,0.07795372]
[1765159373521,0.2199228,90941.0,90939.0,0.07795372]
[1765159373728,0.2199228,90941.0,90940.0,0.09856]
[1765159373953,0.01099541,90947.0,90940.0,0.16514]
[1765159374191,0.01099553,90946.0,90943.0,0.01099589]
[1765159374407,0.21990346,90949.0,90945.0,0.01099565]
[1765159374647,0.01099493,90951.0,90947.0,0.01099541]
[1765159374894,0.00375742,90952.0,90951.0,0.022192]
[1765159375152,0.00375742,90952.0,90951.0,0.187332]
[1765159375404,0.00375742,90952.0,90951.0,0.26012163]
[1765159376099,0.00214455,90952.0,90951.0,0.26012163]
[1765159376546,0.00214455,90952.0,90951.0,0.74648063]
[1765159376750,0.00214455,90952.0,90951.0,0.80900362]
[1765159377230,0.00314455,90952.0,90951.0,0.64564462]
[1765159377436,0.23004075,90952.0,90951.0,0.001]
[1765159377657,0.21991797,90943.0,90941.0,0.03290265]
[1765159378065,0.01099577,90944.0,90942.0,0.0612]
[1765159378282,0.01099505,90950.0,90943.0,0.01099589]
[1765159378466,0.23090878,90945.0,90944.0,0.04495174]
[1765159378661,0.01099565,90945.0,90944.0,0.04495174]
[1765159379069,0.01099553,90946.0,90944.0,0.04495174]
[1765159379416,0.01813936,90952.0,90951.0,0.001]
[1765159379616,0.00714455,90952.0,90951.0,0.0622]
[1765159379747,0.00214455,90952.0,90951.0,0.12890478]
[1765159379948,0.00214455,90952.0,90951.0,0.22040478]
[1765159380172,0.00214455,90952.0,90951.0,0.24259678]
[1765159380763,0.00814455,90952.0,90951.0,0.24359678]
[1765159381001,0.00814455,90952.0,90951.0,0.24259678]
[1765159381002,0.00214455,90952.0,90951.0,0.24259678]
[1765159381211,0.00314455,90952.0,90951.0,0.22040478]
[1765159381412,0.00514455,90952.0,90951.0,0.12890478]
[1765159381838,0.00514455,90952.0,90951.0,0.06770478]
[1765159382215,0.00414455,90952.0,90951.0,0.06770478]
[1765159382427,0.00214455,90952.0,90951.0,0.12890478]